[Event "Gideon Japhet ACP Open 2018"]
[Site "Jerusalem"]
[Date "2018.07.06"]
[Round "7"]
[White "Baron, Tal"]
[Black "Boruchovsky, Avital"]
[Result "1-0"]
[ECO "D11"]
[WhiteElo "2530"]
[BlackElo "2558"]
[Annotator "ChessBase"]
[PlyCount "49"]
[EventDate "2018.07.01"]
[EventType "swiss"]
[EventCountry "ISR"]
[SourceTitle "playchess.com"]
[Source "ChessBase"]
[SourceQuality "1"]
[TimeControl "40/5400+30:1800+30"]

1. d4 {[%emt 0:00:00]} d5 {[%emt 0:00:00]} 2. c4 {[%emt 0:00:00]} c6 {[%emt 0:00:00]} 3. Nf3 {[%emt 0:00:00]} Nf6 {[%emt 0:00:00]} 4. g3 {[%emt 0:00:31]} dxc4 {[%emt 0:00:11]} 5. Bg2 {[%emt 0:00:04]} g6 {[%emt 0:00:08]} 6. O-O {[%emt 0:00:25]} Bg7 {[%emt 0:00:04]} 7. a4 {[%emt 0:00:15]} Ne4 {[%emt 0:00:28]} 8. Nc3 {[%emt 0:00:10]} Nd6 {[%emt 0:02:07]} 9. e4 {[%emt 0:11:13]} Bg4 {[%emt 0:02:09]} 10. Be3 {[%emt 0:00:08]} O-O {[%emt 0:04:38]} 11. Qd2 {[%emt 0:19:41]} Nd7 {[%emt 0:04:25]} 12. Ng5 {[%emt 0:06:14]} e5 {[%emt 0:10:19]} 13. h3 {[%emt 0:02:18]} Be6 {[%emt 0:01:14]} 14. d5 {[%emt 0:06:28]} cxd5 {[%emt 0:05:04]} 15. Nxe6 {[%emt 0:01:20]} fxe6 {[%emt 0:00:37]} 16. exd5 {[%emt 0:00:03]} Nf6 {[%emt 0:01:04]} 17. dxe6 {[%emt 0:00:16]} Re8 {[%emt 0:00:08]} 18. Rfd1 {[%emt 0:04:31]} Rxe6 {[%emt 0:01:16]} 19. Nb5 {[%emt 0:03:45]} Bf8 {[%emt 0:00:53]} 20. Bd5 {[%emt 0:01:32]} Qd7 {[%emt 0:10:16]} 21. Bxe6+ {[%emt 0:02:30]} Qxe6 {[%emt 0:00:02]} 22. Nxd6 {[%emt 0:03:41]} Rd8 {[%emt 0:00:08]} 23. Bc5 {[%emt 0:00:18]} b6 {[%emt 0:06:50]} 24. Ba3 {[%emt 0:00:15]} Qxh3 {[%emt 0:03:58]} 25. Qg5 {[%emt 0:01:01]} 1-0

[Event "Gideon Japhet ACP Open 2018"]
[Site "Jerusalem"]
[Date "2018.07.06"]
[Round "7"]
[White "Muzychuk, Mariya"]
[Black "Bagrationi, Alexander"]
[Result "1-0"]
[ECO "B61"]
[WhiteElo "2521"]
[BlackElo "2539"]
[Annotator "ChessBase"]
[PlyCount "47"]
[EventDate "2018.07.01"]
[EventType "swiss"]
[EventCountry "ISR"]
[SourceTitle "playchess.com"]
[Source "ChessBase"]
[SourceQuality "1"]
[TimeControl "40/5400+30:1800+30"]

1. e4 {[%emt 0:02:38]} c5 {[%emt 0:00:00]} 2. Nf3 {[%emt 0:00:08]} d6 {[%emt 0:00:00]} 3. d4 {[%emt 0:00:45]} cxd4 {[%emt 0:00:00]} 4. Nxd4 {[%emt 0:00:02]} Nf6 {[%emt 0:00:00]} 5. Nc3 {[%emt 0:00:04]} Nc6 {[%emt 0:00:00]} 6. Bg5 {[%emt 0:00:26]} Bd7 {[%emt 0:00:00]} 7. Qd2 {[%emt 0:01:08]} Rc8 {[%emt 0:02:22]} 8. O-O-O {[%emt 0:00:54]} Nxd4 {[%emt 0:00:30]} 9. Qxd4 {[%emt 0:00:05]} Qa5 {[%emt 0:00:05]} 10. f4 {[%emt 0:00:15]} h6 {[%emt 0:00:10]} 11. Bxf6 {[%emt 0:00:30]} gxf6 {[%emt 0:00:03]} 12. Kb1 {[%emt 0:01:52]} Qc5 {[%emt 0:04:56]} 13. Qd2 {[%emt 0:04:10]} f5 {[%emt 0:03:58]} 14. e5 {[%emt 0:05:38]} e6 {[%emt 0:02:04]} 15. g4 {[%emt 0:08:07]} Bc6 {[%emt 0:06:33]} 16. Bg2 {[%emt 0:01:35]} Bxg2 {[%emt 0:01:04]} 17. Qxg2 {[%emt 0:00:06]} Rg8 {[%emt 0:00:21]} 18. Qxb7 {[%emt 0:03:36]} Rc7 {[%emt 0:02:53]} 19. Qa6 {[%emt 0:09:33]} Rxg4 {[%emt 0:04:05]} 20. exd6 {[%emt 0:06:13]} Rc6 {[%emt 0:01:37]} 21. d7+ {[%emt 0:03:39]} Kd8 {[%emt 0:01:58]} 22. Qb7 {[%emt 0:00:17]} Bd6 {[%emt 0:00:31]} 23. Nb5 {[%emt 0:11:45]} Rb6 {[%emt 0:01:39]} 24. Nxd6 {[%emt 0:04:09]} 1-0

[Event "Gideon Japhet ACP Open 2018"]
[Site "Jerusalem"]
[Date "2018.07.06"]
[Round "7"]
[White "Oratovsky, Michael"]
[Black "Veinberg, Nimrod"]
[Result "1/2-1/2"]
[ECO "C54"]
[WhiteElo "2461"]
[BlackElo "2390"]
[Annotator "ChessBase"]
[PlyCount "107"]
[EventDate "2018.07.01"]
[EventType "swiss"]
[EventCountry "ISR"]
[SourceTitle "playchess.com"]
[Source "ChessBase"]
[SourceQuality "1"]
[TimeControl "40/5400+30:1800+30"]

1. e4 {[%emt 0:01:11]} e5 {[%emt 0:00:57]} 2. Nf3 {[%emt 0:00:06]} Nc6 {[%emt 0:00:05]} 3. Bc4 {[%emt 0:00:03]} Bc5 {[%emt 0:00:06]} 4. c3 {[%emt 0:00:04]} Nf6 {[%emt 0:00:05]} 5. d3 {[%emt 0:00:04]} O-O {[%emt 0:00:23]} 6. Nbd2 {[%emt 0:00:07]} d6 {[%emt 0:00:14]} 7. h3 {[%emt 0:07:10]} a6 {[%emt 0:00:39]} 8. Bb3 {[%emt 0:00:15]} Ba7 {[%emt 0:00:14]} 9. Nf1 {[%emt 0:00:39]} d5 {[%emt 0:00:26]} 10. Qe2 {[%emt 0:10:39]} Be6 {[%emt 0:00:19]} 11. Ng5 {[%emt 0:11:11]} dxe4 {[%emt 0:00:59]} 12. Nxe6 {[%emt 0:26:56]} exd3 {[%emt 0:02:07]} 13. Nxd8 {[%emt 0:00:55]} dxe2 14. Nxc6 {[%emt 0:00:11]} exf1=Q+ {[%emt 0:00:49]} 15. Rxf1 {[%emt 0:01:40]} bxc6 {[%emt 0:05:57]} 16. Ba4 {[%emt 0:05:17]} c5 {[%emt 0:02:40]} 17. Bg5 {[%emt 0:07:35]} Rfd8 {[%emt 0:00:10]} 18. Bxf6 {[%emt 0:10:39]} gxf6 19. Bb3 {[%emt 0:00:02]} Rab8 {[%emt 0:03:24]} 20. Rb1 Rd6 {[%emt 0:01:06]} 21. Ke2 {[%emt 0:00:42]} Rdb6 22. Rfd1 {[%emt 0:14:04]} Rd6 {[%emt 0:08:35]} 23. Bc4 Kf8 {[%emt 0:03:41]} 24. b3 {[%emt 0:01:43]} Ke7 {[%emt 0:00:50]} 25. Rd3 {[%emt 0:00:40]} Bb6 {[%emt 0:01:13]} 26. Rbd1 {[%emt 0:00:33]} Ba5 {[%emt 0:00:26]} 27. Rg3 {[%emt 0:00:24]} f5 {[%emt 0:07:13]} 28. Rxd6 {[%emt 0:00:36]} cxd6 {[%emt 0:00:04]} 29. Rg7 {[%emt 0:00:26]} Rf8 {[%emt 0:00:14]} 30. Kd3 {[%emt 0:00:36]} Kf6 {[%emt 0:00:31]} 31. Rg3 {[%emt 0:00:22]} e4+ {[%emt 0:05:28]} 32. Kc2 {[%emt 0:00:29]} Ke5 {[%emt 0:00:44]} 33. Rg5 {[%emt 0:00:18]} d5 {[%emt 0:00:49]} 34. Bxa6 {[%emt 0:00:18]} Ra8 35. Bb7 {[%emt 0:00:06]} Ra7 {[%emt 0:01:41]} 36. Bc8 d4 {[%emt 0:03:02]} 37. Rxf5+ {[%emt 0:01:32]} Kd6 {[%emt 0:00:10]} 38. Rf6+ {[%emt 0:00:48]} Ke7 {[%emt 0:00:28]} 39. Ra6 {[%emt 0:00:02]} Rxa6 40. Bxa6 Bxc3 {[%emt 0:00:39]} 41. f3 {[%emt 0:06:18]} f5 {[%emt 0:08:17]} 42. Bb7 {[%emt 0:14:08]} e3 {[%emt 0:01:13]} 43. Kd3 {[%emt 0:00:08]} f4 {[%emt 0:11:09]} 44. Ba6 {[%emt 0:00:50]} Kf6 {[%emt 0:00:08]} 45. Ke2 {[%emt 0:12:07]} Ke5 {[%emt 0:01:10]} 46. Bd3 {[%emt 0:00:19]} h6 {[%emt 0:00:16]} 47. Bc4 {[%emt 0:00:34]} Kd6 {[%emt 0:00:26]} 48. Kd3 {[%emt 0:00:23]} Ke5 {[%emt 0:01:50]} 49. Ke2 {[%emt 0:00:47]} Bd2 {[%emt 0:00:25]} 50. Kd1 {[%emt 0:00:27]} Kf5 {[%emt 0:00:27]} 51. Bd3+ {[%emt 0:00:19]} Kg5 {[%emt 0:00:09]} 52. Ke2 {[%emt 0:00:09]} Kh4 {[%emt 0:00:20]} 53. Kf1 {[%emt 0:00:22]} Bc3 {[%emt 0:00:15]} 54. Ke2 {[%emt 0:00:43]} 1/2-1/2

[Event "Gideon Japhet ACP Open 2018"]
[Site "Jerusalem"]
[Date "2018.07.06"]
[Round "7"]
[White "Kantsler, Boris"]
[Black "Gluhovsky, Mark"]
[Result "1-0"]
[ECO "E63"]
[WhiteElo "2422"]
[BlackElo "2308"]
[Annotator "ChessBase"]
[PlyCount "99"]
[EventDate "2018.07.01"]
[EventType "swiss"]
[EventCountry "ISR"]
[SourceTitle "playchess.com"]
[Source "ChessBase"]
[SourceQuality "1"]
[TimeControl "40/5400+30:1800+30"]

1. d4 {[%emt 0:22:41]} Nf6 {[%emt 0:00:00]} 2. c4 {[%emt 0:00:14]} g6 {[%emt 0:00:00]} 3. Nf3 {[%emt 0:00:13]} Bg7 {[%emt 0:00:06]} 4. g3 {[%emt 0:00:01]} d6 {[%emt 0:00:08]} 5. Bg2 {[%emt 0:00:03]} O-O {[%emt 0:00:08]} 6. O-O {[%emt 0:00:02]} Nc6 {[%emt 0:00:28]} 7. Nc3 {[%emt 0:00:28]} a6 {[%emt 0:00:11]} 8. Qd3 {[%emt 0:00:48]} Bd7 {[%emt 0:09:20]} 9. e4 {[%emt 0:09:16]} e5 {[%emt 0:01:52]} 10. d5 {[%emt 0:00:10]} Nb4 {[%emt 0:01:13]} 11. Qe2 {[%emt 0:01:59]} a5 {[%emt 0:00:08]} 12. Ne1 {[%emt 0:00:24]} Ne8 {[%emt 0:06:11]} 13. Rb1 {[%emt 0:08:35]} c5 {[%emt 0:08:34]} 14. a3 {[%emt 0:11:14]} Na6 {[%emt 0:01:25]} 15. Nb5 {[%emt 0:01:53]} Nac7 {[%emt 0:03:41]} 16. a4 {[%emt 0:04:44]} Na6 {[%emt 0:02:54]} 17. Nd3 {[%emt 0:05:55]} Nb4 {[%emt 0:07:42]} 18. Nxb4 {[%emt 0:01:12]} axb4 {[%emt 0:00:18]} 19. b3 {[%emt 0:00:03]} f5 {[%emt 0:01:20]} 20. exf5 {[%emt 0:00:22]} Bxf5 {[%emt 0:03:49]} 21. Ra1 {[%emt 0:02:50]} Nf6 {[%emt 0:03:53]} 22. Be3 {[%emt 0:10:33]} Qd7 {[%emt 0:03:09]} 23. Rae1 {[%emt 0:03:15]} h6 {[%emt 0:03:28]} 24. f3 {[%emt 0:07:48]} g5 {[%emt 0:00:40]} 25. g4 {[%emt 0:00:04]} Bg6 {[%emt 0:00:52]} 26. Bf2 {[%emt 0:00:13]} Rae8 {[%emt 0:04:15]} 27. Bg3 {[%emt 0:00:07]} h5 {[%emt 0:01:16]} 28. h3 {[%emt 0:00:16]} Re7 {[%emt 0:00:49]} 29. Qd2 {[%emt 0:03:56]} Bh6 {[%emt 0:02:39]} 30. Re3 {[%emt 0:03:31]} Ref7 {[%emt 0:01:42]} 31. Nxd6 {[%emt 0:01:18]} Qxd6 {[%emt 0:00:17]} 32. Bxe5 {[%emt 0:00:14]} Qd7 {[%emt 0:01:03]} 33. Rfe1 {[%emt 0:00:17]} Bg7 {[%emt 0:01:24]} 34. R3e2 {[%emt 0:01:35]} Nh7 {[%emt 0:04:11]} 35. Bxg7 {[%emt 0:00:01]} Rxg7 {[%emt 0:00:43]} 36. Re6 {[%emt 0:00:29]} Re8 {[%emt 0:02:29]} 37. Rxe8+ {[%emt 0:00:10]} Bxe8 {[%emt 0:00:08]} 38. Qe3 {[%emt 0:00:00]} Bf7 {[%emt 0:03:59]} 39. Qxc5 {[%emt 0:00:01]} Nf8 {[%emt 0:00:53]} 40. Re7 {[%emt 0:02:25]} b6 {[%emt 0:00:38]} 41. Rxd7 {[%emt 0:30:19]} bxc5 {[%emt 0:30:07]} 42. Rc7 {[%emt 0:00:03]} Be8 {[%emt 0:09:37]} 43. Rxc5 {[%emt 0:00:13]} Ng6 {[%emt 0:04:34]} 44. Rc8 {[%emt 0:01:12]} Kf8 45. d6 {[%emt 0:00:32]} h4 {[%emt 0:08:48]} 46. c5 {[%emt 0:00:14]} Ne5 {[%emt 0:00:56]} 47. f4 {[%emt 0:00:00]} gxf4 {[%emt 0:00:00]} 48. c6 {[%emt 0:00:00]} f3 {[%emt 0:00:00]} 49. c7 {[%emt 0:00:00]} fxg2 {[%emt 0:00:00]} 50. Rxe8+ {[%emt 0:00:00]} 1-0

[Event "Gideon Japhet ACP Open 2018"]
[Site "Jerusalem"]
[Date "2018.07.06"]
[Round "7"]
[White "Gruenfeld, Yehuda"]
[Black "Cohen Revivo, Shoham"]
[Result "1/2-1/2"]
[ECO "B45"]
[WhiteElo "2419"]
[BlackElo "2248"]
[Annotator "ChessBase"]
[PlyCount "100"]
[EventDate "2018.07.01"]
[EventType "swiss"]
[EventCountry "ISR"]
[SourceTitle "playchess.com"]
[Source "ChessBase"]
[SourceQuality "1"]
[TimeControl "40/5400+30:1800+30"]

1. e4 {[%emt 0:00:00]} c5 {[%emt 0:00:23]} 2. Nf3 {[%emt 0:00:00]} Nc6 {[%emt 0:00:11]} 3. Nc3 {[%emt 0:00:31]} e6 {[%emt 0:00:18]} 4. d4 {[%emt 0:00:22]} cxd4 {[%emt 0:00:15]} 5. Nxd4 {[%emt 0:00:05]} Nf6 {[%emt 0:00:10]} 6. Nxc6 {[%emt 0:00:11]} bxc6 {[%emt 0:00:07]} 7. e5 {[%emt 0:00:03]} Nd5 {[%emt 0:00:09]} 8. Ne4 {[%emt 0:00:05]} Qc7 {[%emt 0:00:27]} 9. f4 {[%emt 0:00:05]} Qb6 {[%emt 0:00:14]} 10. c4 {[%emt 0:01:31]} Bb4+ {[%emt 0:00:09]} 11. Ke2 {[%emt 0:00:17]} f5 {[%emt 0:00:06]} 12. Nf2 {[%emt 0:03:04]} Ba6 {[%emt 0:00:17]} 13. Kf3 {[%emt 0:00:14]} Ne7 {[%emt 0:00:09]} 14. Be3 {[%emt 0:01:55]} Bc5 {[%emt 0:00:07]} 15. Bxc5 {[%emt 0:00:10]} Qxc5 {[%emt 0:00:02]} 16. Qd6 {[%emt 0:00:08]} Qb6 {[%emt 0:00:05]} 17. b3 {[%emt 0:04:28]} Bb7 {[%emt 0:00:39]} 18. Rd1 {[%emt 0:01:06]} Kf7 {[%emt 0:05:19]} 19. h4 {[%emt 0:06:14]} c5+ {[%emt 0:10:23]} 20. Ke3 {[%emt 0:03:16]} Rhd8 {[%emt 0:01:43]} 21. Nd3 {[%emt 0:04:00]} Rac8 {[%emt 0:00:08]} 22. Qxb6 {[%emt 0:00:44]} axb6 {[%emt 0:00:02]} 23. Rh2 {[%emt 0:01:26]} Nc6 {[%emt 0:13:00]} 24. Nc1 {[%emt 0:04:06]} Nd4 {[%emt 0:15:05]} 25. g3 {[%emt 0:02:26]} d6 {[%emt 0:02:41]} 26. exd6 {[%emt 0:02:43]} Rxd6 {[%emt 0:01:44]} 27. Nd3 {[%emt 0:01:11]} Rcd8 {[%emt 0:06:58]} 28. Rhd2 {[%emt 0:01:11]} Ke7 {[%emt 0:01:05]} 29. Ne5 {[%emt 0:02:33]} Nc2+ {[%emt 0:04:03]} 30. Ke2 {[%emt 0:00:09]} Rxd2+ {[%emt 0:00:31]} 31. Rxd2 {[%emt 0:00:09]} Rxd2+ {[%emt 0:00:30]} 32. Kxd2 {[%emt 0:00:01]} Nd4 {[%emt 0:01:49]} 33. Be2 {[%emt 0:03:10]} Be4 {[%emt 0:02:21]} 34. Bd1 {[%emt 0:01:01]} Nc6 {[%emt 0:02:49]} 35. Ke3 {[%emt 0:03:20]} Nd4 {[%emt 0:14:31]} 36. b4 {[%emt 0:05:14]} Nc6 {[%emt 0:07:59]} 37. a3 {[%emt 0:04:18]} Kd6 {[%emt 0:04:56]} 38. Nxc6 {[%emt 0:02:27]} Bxc6 {[%emt 0:00:26]} 39. Bc2 {[%emt 0:04:20]} g6 {[%emt 0:02:22]} 40. h5 {[%emt 0:00:25]} e5 {[%emt 0:02:36]} 41. h6 {[%emt 0:35:20]} e4 {[%emt 0:31:48]} 42. g4 {[%emt 0:00:38]} Ke6 {[%emt 0:01:50]} 43. bxc5 {[%emt 0:00:25]} bxc5 {[%emt 0:00:02]} 44. gxf5+ {[%emt 0:02:47]} gxf5 {[%emt 0:00:06]} 45. a4 {[%emt 0:02:08]} Kd6 {[%emt 0:00:00]} 46. a5 {[%emt 0:00:00]} Kc7 {[%emt 0:00:00]} 47. Bd1 {[%emt 0:00:00]} Be8 {[%emt 0:00:00]} 48. Bc2 {[%emt 0:00:00]} Bc6 {[%emt 0:00:00]} 49. Bd1 {[%emt 0:00:00]} Be8 {[%emt 0:00:00]} 50. Bc2 Kb7 1/2-1/2

[Event "Gideon Japhet ACP Open 2018"]
[Site "Jerusalem"]
[Date "2018.07.06"]
[Round "7"]
[White "Shvayger, Yuliya"]
[Black "Axelrod, Arie"]
[Result "1/2-1/2"]
[ECO "B76"]
[WhiteElo "2409"]
[BlackElo "2269"]
[Annotator "ChessBase"]
[PlyCount "107"]
[EventDate "2018.07.01"]
[EventType "swiss"]
[EventCountry "ISR"]
[SourceTitle "playchess.com"]
[Source "ChessBase"]
[SourceQuality "1"]
[TimeControl "40/5400+30:1800+30"]

1. e4 {[%emt 0:00:00]} c5 {[%emt 0:00:00]} 2. Nf3 {[%emt 0:00:00]} d6 {[%emt 0:00:00]} 3. d4 {[%emt 0:00:00]} cxd4 {[%emt 0:00:00]} 4. Nxd4 {[%emt 0:00:00]} Nf6 {[%emt 0:00:00]} 5. Nc3 {[%emt 0:00:11]} g6 {[%emt 0:00:03]} 6. Be3 {[%emt 0:00:17]} Bg7 {[%emt 0:00:02]} 7. f3 {[%emt 0:00:29]} Nc6 {[%emt 0:00:03]} 8. Qd2 {[%emt 0:00:14]} O-O {[%emt 0:00:05]} 9. O-O-O {[%emt 0:00:14]} Qa5 {[%emt 0:00:32]} 10. Kb1 {[%emt 0:06:16]} Bd7 {[%emt 0:06:57]} 11. g4 {[%emt 0:07:15]} Rfc8 {[%emt 0:01:35]} 12. h4 {[%emt 0:05:24]} Ne5 {[%emt 0:00:46]} 13. h5 {[%emt 0:28:30]} Nxf3 {[%emt 0:00:56]} 14. Nxf3 {[%emt 0:00:46]} Bxg4 {[%emt 0:00:02]} 15. Bg2 {[%emt 0:05:41]} Bxh5 {[%emt 0:03:56]} 16. Nd5 {[%emt 0:01:33]} Qxd2 {[%emt 0:07:18]} 17. Nxf6+ {[%emt 0:00:13]} Bxf6 {[%emt 0:00:06]} 18. Rxd2 {[%emt 0:00:04]} Bxf3 {[%emt 0:06:37]} 19. Bxf3 {[%emt 0:00:08]} Rc7 {[%emt 0:00:30]} 20. Rdh2 {[%emt 0:05:20]} Rac8 {[%emt 0:02:53]} 21. Bxa7 {[%emt 0:04:14]} Be5 {[%emt 0:01:46]} 22. Rd2 {[%emt 0:02:00]} h5 {[%emt 0:03:34]} 23. Be3 {[%emt 0:02:40]} Kf8 {[%emt 0:09:12]} 24. c3 {[%emt 0:00:27]} e6 {[%emt 0:00:24]} 25. Bd4 {[%emt 0:08:28]} Bf4 {[%emt 0:01:34]} 26. Rg2 {[%emt 0:01:03]} Ke7 {[%emt 0:00:24]} 27. Bd1 {[%emt 0:01:50]} e5 {[%emt 0:01:16]} 28. Bf2 {[%emt 0:00:12]} Kf6 {[%emt 0:07:22]} 29. Rf1 {[%emt 0:06:10]} Rc4 {[%emt 0:02:12]} 30. Bh4+ {[%emt 0:05:46]} Kg7 {[%emt 0:02:44]} 31. Bxh5 {[%emt 0:02:13]} Rxe4 {[%emt 0:01:26]} 32. Bf3 {[%emt 0:00:12]} Re3 {[%emt 0:02:59]} 33. Bxb7 {[%emt 0:00:05]} Rb8 {[%emt 0:00:26]} 34. Bd5 {[%emt 0:00:19]} Rxc3 {[%emt 0:00:23]} 35. Bg5 {[%emt 0:00:50]} Rc5 {[%emt 0:02:46]} 36. Bb3 {[%emt 0:02:28]} Rbc8 {[%emt 0:01:38]} 37. Bxf4 {[%emt 0:00:04]} exf4 {[%emt 0:00:11]} 38. a4 {[%emt 0:00:03]} Rb8 {[%emt 0:01:37]} 39. Ka2 {[%emt 0:02:40]} Rb4 {[%emt 0:00:12]} 40. Rd2 {[%emt 0:03:23]} g5 {[%emt 0:04:28]} 41. Rxd6 {[%emt 0:30:38]} f6 {[%emt 0:36:39]} 42. Ka3 {[%emt 0:00:00]} Re4 {[%emt 0:00:00]} 43. Rd7+ {[%emt 0:00:00]} Kg6 {[%emt 0:00:00]} 44. Rd5 {[%emt 0:00:00]} Rxd5 {[%emt 0:00:00]} 45. Bxd5 {[%emt 0:00:00]} Rd4 {[%emt 0:00:00]} 46. Bb7 {[%emt 0:00:00]} Rd7 {[%emt 0:00:00]} 47. Bc6 {[%emt 0:00:00]} Rc7 {[%emt 0:00:00]} 48. Bh1 {[%emt 0:00:00]} Kf5 {[%emt 0:00:00]} 49. a5 {[%emt 0:00:00]} g4 {[%emt 0:00:00]} 50. a6 {[%emt 0:00:00]} f3 {[%emt 0:00:00]} 51. Bxf3 {[%emt 0:00:00]} gxf3 {[%emt 0:00:00]} 52. Rxf3+ {[%emt 0:00:00]} Ke5 {[%emt 0:00:00]} 53. Ka4 {[%emt 0:00:00]} f5 {[%emt 0:00:00]} 54. Kb5 1/2-1/2

[Event "Gideon Japhet ACP Open 2018"]
[Site "Jerusalem"]
[Date "2018.07.06"]
[Round "7"]
[White "Melia, Salome"]
[Black "Yaniv, Yuval"]
[Result "1-0"]
[ECO "B42"]
[WhiteElo "2392"]
[BlackElo "2054"]
[Annotator "NA"]
[PlyCount "71"]
[EventDate "2018.07.01"]
[EventType "swiss"]
[EventCountry "ISR"]
[SourceTitle "playchess.com"]
[Source "ChessBase"]
[SourceQuality "1"]
[TimeControl "40/5400+30:1800+30"]

{[%evp 9,60,33,39,34,33,36,54,39,39,33,32767,34,37,38,37,31,41,0,19,12,16,0,17,0,0,13,24,0,0,0,0,11,84,32767,23,32767,32767,25,29,28,27,26,27,2,26,4,32767,32767,22,32767,32767,32767,44]} 1. e4 {[%emt 0:11:02]} c5 {[%emt 0:00:00]} 2. Nf3 {[%emt 0:00:08]} e6 {[%emt 0:00:00]} 3. d4 {[%emt 0:00:16]} cxd4 {[%emt 0:00:00]} 4. Nxd4 {[%emt 0:00:03]} a6 {[%emt 0:00:00]} 5. Bd3 {[%emt 0:01:42]} Bc5 {[%emt 0:00:07]} 6. Nb3 {[%emt 0:00:03]} Ba7 {[%emt 0:00:05]} 7. O-O {[%emt 0:00:16]} Nc6 {[%emt 0:00:12]} 8. Qe2 {[%emt 0:02:30]} d6 {[%emt 0:00:59]} 9. Be3 {[%emt 0:00:36]} Nf6 {[%emt 0:00:18]} 10. c4 {[%emt 0:02:08] B42: Sicilian: Kan Variation: 5 Bd3} e5 {[%emt 0:00:21]} (10... O-O 11. Nc3 e5 12. Rfd1 Bg4 13. f3 Be6 14. Bxa7 Rxa7 15. Rac1 Nd7 16. Qe3 b6 {1-0 (36) Caruana,F (2811)-Bykhovsky,A (2496) chess.com INT 2018}) 11. Bxa7 {[%emt 0:00:14]} Rxa7 {[%emt 0:00:03]} 12. Nc3 {[%emt 0:00:15]} O-O {[%emt 0:00:18] LiveBook: 12 Games} 13. h3 {[%emt 0:01:09]} Be6 {[%emt 0:00:24]} 14. Qe3 {[%emt 0:01:34]} b6 $146 {[%emt 0:00:34]} ({Predecessor:} 14... Nd7 15. Nd5 a5 16. a4 b6 17. Rfd1 Nc5 {0-1 (43) Olsarova,T (2244)-Coleman,T (2379) Pardubice 2012}) 15. Be2 {[%emt 0:05:48]} Nd7 {[%emt 0:03:40]} 16. Rfd1 {[%emt 0:07:32]} Nc5 {[%emt 0:00:21]} 17. Rd2 {[%emt 0:00:12]} Rd7 {[%emt 0:03:09]} 18. Bf1 {[%emt 0:04:18]} Qb8 {[%emt 0:05:58]} 19. Nc1 {[%emt 0:02:53]} a5 {[%emt 0:04:15]} 20. b3 {[%emt 0:03:09]} Nd4 {[%emt 0:04:49]} (20... f5 $11 {remains equal.}) 21. N3e2 {[%emt 0:04:23]} Nxe2+ {[%emt 0:07:27]} 22. Nxe2 {[%emt 0:00:32]} b5 {[%emt 0:03:00]} 23. cxb5 {[%emt 0:05:13]} Qxb5 {[%emt 0:00:14]} 24. Nc3 {[%emt 0:00:18]} Qb4 {[%emt 0:04:09]} 25. Rad1 {[%emt 0:02:03]} a4 {[%emt 0:04:23]} 26. bxa4 {[%emt 0:07:00]} Nxa4 {[%emt 0:00:27]} 27. Nb5 {[%emt 0:06:07]} Rfd8 {[%emt 0:03:13]} 28. a3 {[%emt 0:01:11]} Qb3 {[%emt 0:11:06]} 29. Qxb3 {[%emt 0:06:30]} Bxb3 {[%emt 0:00:03]} 30. Rc1 {[%emt 0:02:19]} Be6 $14 {[%emt 0:02:18]} 31. f3 {[%emt 0:04:25]} Kf8 {[%emt 0:03:57]} 32. Kf2 {[%emt 0:05:57]} f5 {[%emt 0:05:48]} 33. Nc7 {[%emt 0:02:45]} Rxc7 {[%emt 0:12:17]} 34. Rxc7 {[%emt 0:00:04]} fxe4 {[%emt 0:00:10]} 35. fxe4 {[%emt 0:00:44]} d5 {[%emt 0:02:00]} 36. Bb5 {[%emt 0:03:21]} 1-0

[Event "Gideon Japhet ACP Open 2018"]
[Site "Jerusalem"]
[Date "2018.07.06"]
[Round "7"]
[White "Kudischewitsch, David"]
[Black "Bronfman, Shmuel"]
[Result "1-0"]
[ECO "A45"]
[WhiteElo "2356"]
[BlackElo "2108"]
[Annotator "NA"]
[PlyCount "85"]
[EventDate "2018.07.01"]
[EventType "swiss"]
[EventCountry "ISR"]
[SourceTitle "playchess.com"]
[Source "ChessBase"]
[SourceQuality "1"]
[TimeControl "40/5400+30:1800+30"]

{[%evp 19,84,-15,-2,32767,-6,-27,-8,32767,-2,-5,0,32767,-4,-5,-5,-5,-6,-4,0,-20,0,-60,-63,-65,-4,-5,-4,-4,0,0,0,-12,-5,-4,0,-8,-14,-67,-7,-62,-22,-17,-18,-17,0,0,0,-4,32767,0,0,0,0,0,0,-4,0,0,0,0,8,10,326,450,393,453,393]} 1. d4 {[%emt 0:00:00]} Nf6 {[%emt 0:00:00]} 2. c3 {[%emt 0:00:00]} d5 {[%emt 0:00:35]} 3. Bg5 {[%emt 0:00:00]} e6 {[%emt 0:00:15]} 4. Nd2 {[%emt 0:00:02]} Be7 {[%emt 0:00:27]} 5. e3 {[%emt 0:00:04] D00: Damenbauernspiele} b6 {[%emt 0:00:29]} (5... h6 6. Bh4 O-O 7. Bd3 b6 8. Qe2 Bb7 9. f4 Ne4 10. Bxe7 Qxe7 11. Ngf3 Nd7 12. g4 c5 {1-0 (29) Andreikin,D (2713)-Moiseenko,A (2711) Khanty-Mansiysk 2013}) 6. Bd3 {[%emt 0:00:55]} Bb7 {[%emt 0:00:57]} 7. Qb1 $146 {[%emt 0:00:44]} ({Vorgänger:} 7. f4 h6 8. Bxf6 Bxf6 9. Ngf3 Nd7 10. Qe2 Bh4+ 11. g3 Be7 12. O-O c5 13. Ne5 O-O 14. Nxd7 Qxd7 {½-½ (54) Harika,D (2543)-Dzagnidze,N (2520) Doha 2016}) 7... h6 {[%emt 0:00:31]} 8. Bxf6 {[%emt 0:00:22]} Bxf6 {[%emt 0:00:07]} 9. f4 {[%emt 0:00:02]} c5 {[%emt 0:03:11]} 10. Ngf3 {[%emt 0:04:10]} Nc6 {[%emt 0:03:52]} 11. O-O {[%emt 0:00:10]} O-O {[%emt 0:00:07]} 12. Kh1 {[%emt 0:00:22]} a5 {[%emt 0:01:35]} 13. a4 {[%emt 0:00:10]} Ba6 {[%emt 0:03:04]} 14. Bxa6 {[%emt 0:00:06]} Rxa6 {[%emt 0:00:08]} 15. Rf2 {[%emt 0:00:10]} Ra7 {[%emt 0:03:56]} 16. Qd3 {[%emt 0:00:11]} Rb7 {[%emt 0:00:32]} 17. Ne5 {[%emt 0:01:12]} Ne7 {[%emt 0:03:58]} 18. g4 {[%emt 0:05:58]} Bxe5 {[%emt 0:08:39]} 19. fxe5 {[%emt 0:00:04]} Qd7 {[%emt 0:00:14]} 20. Nf1 {[%emt 0:00:53]} (20. Qe2 $11) 20... b5 {[%emt 0:00:14]} 21. axb5 {[%emt 0:00:08]} Qxb5 {[%emt 0:00:09]} (21... Rxb5 $15 22. Ra2 Rfb8) 22. Qxb5 {[%emt 0:01:25]} Rxb5 {[%emt 0:00:18]} 23. Ra2 {[%emt 0:00:02]} f5 24. exf6 {[%emt 0:00:07]} Rxf6 {[%emt 0:03:16]} 25. Kg1 {[%emt 0:00:34]} Nc6 {[%emt 0:02:47]} 26. Ng3 {[%emt 0:01:32]} Kf7 {[%emt 0:04:49]} 27. Rd2 {[%emt 0:00:35]} Rf3 {[%emt 0:01:04]} 28. Nf1 {[%emt 0:00:13]} Ke7 {[%emt 0:02:45]} 29. Ra4 {[%emt 0:00:27] [#]} Rf8 {[%emt 0:01:11]} (29... cxd4 $1 $17 30. exd4 Rf4) 30. Kg2 {[%emt 0:01:20]} Rfb8 {[%emt 0:00:47]} 31. Ra2 {[%emt 0:00:03]} Rd8 {[%emt 0:01:48]} 32. Ng3 {[%emt 0:00:18]} g6 {[%emt 0:00:16]} 33. h4 {[%emt 0:00:27]} e5 {[%emt 0:01:06]} 34. dxc5 {[%emt 0:00:50]} Rxc5 {[%emt 0:01:51]} 35. Ra1 {[%emt 0:00:09]} d4 {[%emt 0:00:17]} 36. exd4 {[%emt 0:00:13]} exd4 {[%emt 0:00:16]} 37. Re1+ {[%emt 0:02:08]} Kf7 {[%emt 0:00:16]} 38. Rf2+ {[%emt 0:03:09]} Kg7 {[%emt 0:02:21]} 39. Re6 {[%emt 0:02:39]} dxc3 {[%emt 0:01:01]} 40. bxc3 {[%emt 0:00:02]} Rd7 $2 {[%emt 0:03:47] [#]} (40... Rf8 $1 $11 {und Schwarz muss sich keine Sorgen machen.}) 41. h5 $1 {[%emt 0:30:35]} Ne7 {[%emt 0:31:15]} 42. hxg6 {[%emt 0:00:14]} Nxg6 $18 {[%emt 0:01:39]} 43. Nh5+ {[%emt 0:00:14]} 1-0